fUST/lending_fUST_20250811
["ID","MTS","AMOUNT","RATE_DAILY","PERIOD"]
[378458371,1754872263150,-3347.01060868,0.000226,2]
[378458372,1754872263160,-460.0,0.00022601,2]
[378458373,1754872263171,-621.15,0.00022601,2]
[378458374,1754872263181,-460.0,0.00022601,2]
[378458375,1754872263191,-460.0,0.00022601,2]
[378458376,1754872263201,-460.0,0.00022601,2]
[378458377,1754872263211,-460.0,0.00022603,2]
[378458378,1754872263221,-784.76,0.00022603,2]
[378458379,1754872263231,-460.0,0.00022603,2]
[378458380,1754872263241,-222.9790213,0.00022603,2]
[378458381,1754872263251,-460.0,0.00022603,2]
[378458382,1754872263261,-460.0,0.00022603,2]
[378458383,1754872263272,-641.45,0.00022614,2]
[378458384,1754872263282,-460.0,0.00022615,2]
[378458385,1754872263292,-460.0,0.00022615,2]
[378458386,1754872263302,-460.0,0.00022615,2]
[378458387,1754872263313,-460.0,0.00022615,2]
[378458388,1754872263324,-151.0,0.00022617,2]
[378458389,1754872263334,-203.09696167,0.00022617,2]
[378458390,1754872263344,-151.0,0.00022617,2]
[378458391,1754872263354,-151.0,0.00022617,2]
[378458392,1754872263363,-151.0,0.00022617,2]
[378458393,1754872263373,-151.0,0.00022617,2]
[378458394,1754872263384,-151.0,0.00022617,2]
[378458395,1754872263394,-203.27545672,0.00022617,2]
[378458396,1754872263405,-151.0,0.00022617,2]
[378458397,1754872263415,-151.0,0.00022617,2]
[378458398,1754872263425,-151.0,0.00022617,2]
[378458399,1754872263435,-218.59390141,0.00022617,2]
[378458400,1754872263444,-151.0,0.00022641,7]
[378458401,1754872263454,-1500.0,0.000227,2]
[378458402,1754872263464,-1500.0,0.000227,2]
[378458403,1754872263475,-150.0,0.000227,2]
[378458404,1754872263484,-2028.86,0.00022703,2]
[378458405,1754872263494,-460.0,0.00022713,2]
[378458406,1754872263504,-460.0,0.00022713,2]
[378458407,1754872263514,-460.0,0.00022713,2]
[378458408,1754872263524,-968.08,0.00022713,2]
[378458409,1754872263534,-460.0,0.00022714,2]
[378458410,1754872263544,-460.0,0.00022714,2]
[378458411,1754872263554,-585.54,0.00022714,2]
[378458412,1754872263563,-168.0,0.00022727,2]
[378458413,1754872263574,-168.0,0.0002273,2]
[378458414,1754872263585,-759.0,0.00022783,2]
[378458415,1754872263595,-460.0,0.00022794,2]
[378458416,1754872263605,-168.0,0.000228,2]
[378458417,1754872263615,-168.0,0.00022801,2]
[378458418,1754872263625,-151.0,0.0002282,2]
[378458419,1754872263635,-198.0,0.0002282,2]
[378458420,1754872263645,-198.0,0.0002282,2]
[378458421,1754872263654,-198.0,0.0002282,2]
[378458422,1754872263664,-198.0,0.0002282,2]
[378458423,1754872263674,-198.0,0.0002282,2]
[378458424,1754872263684,-752.35,0.00022864,2]
[378458425,1754872263694,-505.18,0.00022864,2]
[378458426,1754872263703,-1183.11,0.00022865,2]
[378458427,1754872263713,-405.92,0.00022875,2]
[378458428,1754872263723,-621.15,0.00022875,2]
[378458429,1754872263734,-460.0,0.00022875,2]
[378458430,1754872263744,-218.47,0.00022875,2]
[378458431,1754872263757,-460.0,0.00022875,2]
[378458432,1754872263768,-460.0,0.00022877,2]
[378458433,1754872263778,-784.76,0.00022877,2]
[378458434,1754872263789,-460.0,0.00022877,2]
[378458435,1754872263799,-460.0,0.00022877,2]
[378458436,1754872263809,-641.45,0.00022888,2]
[378458437,1754872263820,-460.0,0.00022889,2]
[378458438,1754872263831,-460.0,0.00022889,2]
[378458439,1754872263841,-460.0,0.00022889,2]
[378458440,1754872263851,-460.0,0.00022889,2]
[378458441,1754872263862,-199.131035,0.00022891,2]
[378458442,1754872263872,-151.0,0.00022891,2]
[378458443,1754872263882,-151.91968681,0.00022891,2]
[378458444,1754872263891,-151.0,0.00022891,2]
[378458445,1754872263900,-151.0,0.00022891,2]
[378458446,1754872263911,-151.0,0.00022891,2]
[378458447,1754872263920,-151.0,0.00022891,2]
[378458448,1754872263930,-168.0,0.00022935,2]
[378458449,1754872263940,-1500.0,0.00022943,2]
[378458450,1754872263949,-500.0,0.00022943,2]
[378458451,1754872263960,-500.0,0.00022943,2]
[378458452,1754872263970,-1500.0,0.00022943,2]
[378458453,1754872263980,-1500.0,0.00022943,2]
[378458454,1754872263990,-600.0,0.00022944,2]
[378458455,1754872264001,-168.0,0.0002296,2]
[378458456,1754872264010,-649.92277027,0.00022961,2]
[378458457,1754872264020,-1000.0,0.00022961,2]
[378458458,1754872264030,-500.0,0.00022961,2]
[378458459,1754872264040,-1500.0,0.00022961,2]
[378458460,1754872264050,-587.26502555,0.00022961,2]
[378458461,1754872264060,-1001.53174054,0.00022961,2]
[378458462,1754872264071,-2028.86,0.00022977,2]
[378458463,1754872264081,-2056.80004899,0.0002298,2]
[378458464,1754872264091,-350.0,0.00022984,2]
[378458465,1754872264102,-460.0,0.00022987,2]
[378458466,1754872264111,-460.0,0.00022987,2]
[378458467,1754872264122,-968.08,0.00022987,2]
[378458468,1754872264132,-460.0,0.00022988,2]
[378458469,1754872264142,-267.25,0.00022988,2]
[378458470,1754872264153,-1500.0,0.00022991,2]
[378458471,1754872264163,-160.0,0.00023,2]
[378458472,1754872264173,-193.93783112,0.00023,2]
[378458473,1754872264182,-1359.7280243,0.00023,2]
[378458474,1754872264191,-5041.66872044,0.00023,2]
[378458475,1754872264201,-1340.43618727,0.00023,2]
[378458476,1754872264211,-266.0,0.00023014,8]
[378458477,1754872264221,-167.0,0.00023014,7]
[378458478,1754872264231,-168.0,0.00023018,2]
[378458479,1754872264241,-500.0,0.00023018,2]
[378458480,1754872264250,-1500.0,0.00023018,2]
[378458481,1754872264260,-168.0,0.00023023,2]
[378458482,1754872264270,-168.0,0.00023038,2]
[378458483,1754872264280,-347.289769,0.0002304,15]
[378458484,1754872264290,-759.0,0.00023048,2]
[378458485,1754872264300,-151.0,0.00023094,2]
[378458486,1754872264309,-1500.0,0.00023096,2]
[378458487,1754872264320,-11839.40459906,0.000231,5]
[378458488,1754872264330,-168.0,0.00023123,2]
[378458489,1754872264340,-752.35,0.00023138,2]
[378458490,1754872264350,-505.18,0.00023138,2]
[378458491,1754872264360,-1183.11,0.00023139,2]
[378458492,1754872264370,-250.0,0.00023142,2]
[378458493,1754872264381,-621.15,0.00023149,2]
[378458494,1754872264391,-460.0,0.00023149,2]
[378458495,1754872264401,-460.0,0.00023151,2]
[378458496,1754872264411,-784.76,0.00023151,2]
[378458497,1754872264421,-478.25072135,0.00023151,2]
[378458498,1754872264431,-460.0,0.00023151,2]
[378458499,1754872264440,-641.45,0.00023162,2]
[378458500,1754872264450,-530.52,0.00023163,2]
[378458501,1754872264460,-460.0,0.00023163,2]
[378458502,1754872264470,-460.0,0.00023163,2]
[378458503,1754872264480,-460.0,0.00023163,2]
[378458504,1754872264490,-151.0,0.00023165,2]
[378458505,1754872264499,-151.0,0.00023165,2]
[378458506,1754872264510,-198.0,0.00023165,2]
[378458507,1754872264520,-1500.0,0.00023165,7]
[378458508,1754872264532,-1214.03,0.00023181,2]
[378458509,1754872264542,-600.0,0.00023183,2]
[378458510,1754872264551,-200.0,0.00023191,15]
[378458511,1754872264561,-200.0,0.00023191,15]
[378458512,1754872264570,-300.0,0.00023191,15]
[378458513,1754872264580,-347.289769,0.00023198,15]
[378458514,1754872264589,-2000.0,0.00023248,2]
[378458515,1754872264599,-1672.77642099,0.00023248,2]
[378458516,1754872264608,-300.0,0.00023248,2]
[378458517,1754872264618,-2028.86,0.00023251,2]
[378458518,1754872264627,-384.53,0.00023261,2]
[378458519,1754872264637,-460.0,0.00023261,2]
[378458520,1754872264647,-968.08,0.00023261,2]
[378458521,1754872264657,-460.0,0.00023262,2]
[378458522,1754872264666,-500.0,0.00023288,2]
[378458523,1754872264676,-156.546637,0.00023296,2]
[378458524,1754872264686,-759.0,0.00023312,2]
[378458525,1754872264695,-871.7139819,0.00023317,2]
[378458526,1754872264705,-560.0,0.00023342,2]
[378458527,1754872264715,-347.289769,0.00023356,15]
[378458528,1754872264726,-245.0,0.00023368,2]
[378458529,1754872264736,-156.546637,0.00023373,7]
[378458530,1754872264746,-151.0,0.00023375,7]
[378458531,1754872264760,-3000.0,0.00023388,2]
[378458532,1754872264883,-151.0,0.00023388,7]
[378458533,1754872264894,-151.0,0.00023388,7]
[378458534,1754872264904,-151.0,0.00023388,7]
[378458535,1754872264916,-151.0,0.000234,9]
[378458536,1754872264926,-2068.57373598,0.00023409,2]
[378458537,1754872264935,-752.35,0.00023412,2]
[378458538,1754872264945,-505.18,0.00023412,2]
[378458539,1754872264954,-1183.11,0.00023413,2]
[378458540,1754872264963,-600.0,0.00023422,2]
[378458541,1754872264974,-621.15,0.00023423,2]
[378458542,1754872264984,-460.0,0.00023423,2]
[378458543,1754872264994,-460.0,0.00023425,2]
[378458544,1754872265004,-784.76,0.00023425,2]
[378458545,1754872265013,-460.0,0.00023425,2]
[378458546,1754872265023,-641.45,0.00023436,2]
[378458547,1754872265033,-460.0,0.00023437,2]
[378458548,1754872265042,-460.0,0.00023437,2]
[378458549,1754872265052,-151.0,0.00023438,7]
[378458550,1754872265061,-151.0,0.00023439,2]
[378458551,1754872265071,-198.0,0.00023439,2]
[378458552,1754872265081,-115400.37910892,0.00023469,2]
[378458553,1754872265090,-151.0,0.00023469,7]
[378458554,1754872265100,-151.0,0.00023469,7]
[378458555,1754872265109,-151.0,0.00023469,7]
[378458556,1754872265119,-242.689361,0.00023469,7]
[378458557,1754872265128,-151.0,0.00023469,7]
[378458558,1754872265137,-151.0,0.00023469,7]
[378458559,1754872265146,-151.0,0.00023469,7]
[378458560,1754872265156,-151.0,0.00023469,7]
[378458561,1754872265165,-52095.45091007,0.00023469,2]
[378458562,1754872265174,-3029.13,0.00023482,2]
[378458563,1754872265184,-1457.95787263,0.00023491,2]
[378458564,1754872265194,-767.20190534,0.00023491,2]
[378458565,1754872265574,-461.31865146,0.00020121,2]
[378458566,1754872265584,-490.85,0.00020121,2]
[378458567,1754872265594,-460.0,0.00020122,2]
[378458568,1754872265604,-460.0,0.00020122,2]
[378458569,1754872265614,-707.85,0.00020129,3]
[378458570,1754872265623,-460.0,0.00020135,2]
[378458571,1754872265633,-460.0,0.00020135,2]
[378458572,1754872265643,-117.88731854,0.00020135,2]
[378458573,1754872265656,-342.11268146,0.00020135,2]
[378458574,1754872265666,-460.0,0.00020135,2]
[378458575,1754872265676,-467.66445259,0.00020137,2]
[378458576,1754872265686,-460.0,0.00020137,2]
[378458577,1754872265695,-315.01057208,0.00020138,2]
[378458578,1754872270077,150.0,0.00031448,30]
[378458579,1754872346067,33714.89982852,0.00020024,2]
[378458581,1754872359040,2021.06454289,0.000199,2]
[378458582,1754872388747,10000.0,0.0002004,2]
[378458583,1754872395843,10000.0,0.0002004,2]
[378458584,1754872402476,10000.0,0.0002004,2]
[378458585,1754872409102,10000.0,0.0002004,2]
[378458586,1754872415277,10000.0,0.0002004,2]
[378458587,1754872421909,10000.0,0.0002004,2]
[378458588,1754872429646,10000.0,0.0002004,2]
[378458589,1754872435874,10000.0,0.0002004,2]
[378458590,1754872443676,10000.0,0.0002004,2]
[378458591,1754872450983,10000.0,0.0002004,2]
[378458593,1754872535088,157.790592,0.00013699,2]
[378458594,1754872539681,2021.82861185,0.000199,2]
[378458596,1754872610423,24900.0,0.00019123,2]
[378458598,1754872701044,1672.03026571,0.0002002,2]
[378458599,1754872720087,1954.87194069,0.000199,2]
[378458600,1754872738831,168.679228,0.00019863,2]
[378458602,1754872890755,200.0,0.00029847,120]
[378458603,1754872891310,1463.02648254,0.0002002,2]
[378458604,1754872893896,3129.02485766,0.000199,2]
[378458605,1754872950787,200.0,0.00029986,120]
[378458607,1754873068554,3024.72402911,0.000199,2]
[378458608,1754873081800,1280.14817224,0.00020012,2]
[378458609,1754873130745,200.0,0.00029844,120]
[378458614,1754873249138,-1200.0,0.00020106,2]
[378458615,1754873249159,-500.0,0.00020107,2]
[378458616,1754873249182,-293.46066102,0.00020107,2]
[378458617,1754873249207,-329.77757969,0.00020107,2]
[378458618,1754873249233,-500.0,0.00020107,2]
[378458619,1754873249257,-491.53618325,0.00020107,2]
[378458620,1754873249282,-479.97773906,0.00020107,2]
[378458621,1754873249303,-334.72025208,0.00020107,2]
[378458622,1754873249323,-300.0,0.00020107,2]
[378458623,1754873249345,-1200.0,0.00020107,2]
[378458624,1754873249366,-216.53344793,0.00020107,2]
[378458625,1754873249390,-500.0,0.00020107,2]
[378458626,1754873249412,-500.0,0.00020107,2]
[378458627,1754873249435,-500.0,0.00020107,2]
[378458628,1754873249460,-500.0,0.00020107,2]
[378458629,1754873249482,-500.0,0.00020107,2]
[378458630,1754873249503,-500.0,0.00020107,2]
[378458631,1754873249525,-489.46733934,0.00020107,2]
[378458632,1754873257886,157.0,0.0002,2]
[378458633,1754873258928,157.0,0.0002,2]
[378458634,1754873272359,1120.12965071,0.00020008,2]
[378458635,1754873276554,2923.8998947,0.000199,2]
[378458636,1754873370635,157.0,0.000301,120]
[378458637,1754873384914,158.18473995,0.000301,120]
[378458731,1754873437800,-267.09860424,0.00020106,2]
[378458740,1754873437959,-32.90139576,0.00020106,2]
[378458742,1754873437969,-500.0,0.00020106,2]
[378458744,1754873437979,-500.0,0.00020106,2]
[378458746,1754873437989,-500.0,0.00020106,2]
[378458748,1754873437998,-500.0,0.00020106,2]
[378458750,1754873438007,-500.0,0.00020106,2]
[378458752,1754873438017,-165.26190258,0.00020106,2]
[378458754,1754873438026,-500.0,0.00020106,2]
[378458756,1754873438036,-500.0,0.00020106,2]
[378458758,1754873438045,-500.0,0.00020106,2]
[378458760,1754873438054,-500.0,0.00020106,2]
[378458762,1754873438064,-500.0,0.00020106,2]
[378458764,1754873438073,-500.0,0.00020106,2]
[378458766,1754873438083,-500.0,0.00020106,2]
[378458768,1754873438093,-500.0,0.00020106,2]
[378458769,1754873438102,-500.0,0.00020106,2]
[378458770,1754873438112,-500.0,0.00020106,2]
[378458771,1754873438121,-460.0,0.00020107,2]
[378458772,1754873438131,-466.19856007,0.00020107,2]
[378458773,1754873438140,-460.0,0.00020107,2]
[378458774,1754873438149,-460.0,0.00020107,2]
[378458775,1754873438160,-411.39908246,0.00020107,2]
[378458776,1754873438169,-460.0,0.00020107,2]
[378458777,1754873438179,-50000.0,0.00020107,2]
[378458778,1754873438189,-460.0,0.00020108,2]
[378458779,1754873438199,-371.54503622,0.00020108,2]
[378458780,1754873438208,-460.0,0.00020108,2]
[378458781,1754873438217,-460.0,0.00020108,2]
[378458782,1754873438226,-463.80845036,0.00020108,2]
[378458783,1754873438235,-460.0,0.00020108,2]
[378458784,1754873438244,-460.0,0.00020108,2]
[378458785,1754873438254,-468.11104998,0.00020108,2]
[378458786,1754873438263,-460.0,0.00020108,2]
[378458787,1754873438272,-460.0,0.00020108,2]
[378458788,1754873438282,-460.0,0.00020108,2]
[378458789,1754873438294,-460.0,0.00020108,2]
[378458790,1754873438304,-460.0,0.00020108,2]
[378458791,1754873438314,-500.0,0.00020109,2]
[378458792,1754873438323,-500.0,0.00020109,2]
[378458793,1754873438334,-500.0,0.00020109,2]
[378458794,1754873438343,-500.0,0.00020109,2]
[378458795,1754873438352,-500.0,0.00020109,2]
[378458796,1754873438364,-172.16357621,0.00020109,2]
[378458797,1754873438374,-151.0,0.00020109,2]
[378458798,1754873438383,-151.0,0.00020109,2]
[378458799,1754873438393,-151.0,0.00020109,2]
[378458800,1754873438402,-151.0,0.00020109,2]
[378458801,1754873438411,-151.0,0.00020109,2]
[378458802,1754873438420,-151.0,0.00020109,2]
[378458803,1754873438430,-151.0,0.00020109,2]
[378458804,1754873438440,-151.0,0.00020109,2]
[378458805,1754873438449,-151.0,0.00020109,2]
[378458806,1754873438458,-151.0,0.00020109,2]
[378458807,1754873438467,-151.0,0.00020109,2]
[378458808,1754873438477,-151.0,0.00020109,2]
[378458809,1754873438486,-151.0,0.00020109,2]
[378458810,1754873438495,-151.0,0.00020109,2]
[378458811,1754873438504,-151.0,0.00020109,2]
[378458812,1754873438513,-151.0,0.00020109,2]
[378458813,1754873438522,-296.25,0.00020112,3]
[378458814,1754873438531,-888.78,0.00020112,3]
[378458815,1754873438540,-500.0,0.00020112,3]
[378458816,1754873438550,-460.0,0.00020118,2]
[378458817,1754873438559,-460.0,0.00020118,2]
[378458818,1754873438568,-559.07,0.00020118,2]
[378458819,1754873438577,-460.0,0.00020118,2]
[378458820,1754873438586,-460.0,0.00020118,2]
[378458821,1754873438596,-460.0,0.00020118,2]
[378458822,1754873438605,-460.0,0.00020118,2]
[378458823,1754873438615,-460.0,0.00020118,2]
[378458824,1754873438624,-460.0,0.00020118,2]
[378458825,1754873438633,-460.0,0.00020118,2]
[378458826,1754873438643,-494.51043664,0.00020118,2]
[378458827,1754873438652,-460.0,0.00020119,2]
[378458828,1754873438661,-460.0,0.00020119,2]
[378458829,1754873438671,-530.6629841,0.00020119,2]
[378458830,1754873438680,-488.29088345,0.00020119,2]
[378458831,1754873438690,-460.0,0.00020119,2]
[378458832,1754873438699,-460.0,0.00020119,2]
[378458833,1754873438708,-468.44711553,0.00020119,2]
[378458834,1754873438718,-460.0,0.00020119,2]
[378458835,1754873438727,-460.0,0.00020119,2]
[378458836,1754873438736,-460.0,0.00020119,2]
[378458837,1754873438745,-460.0,0.00020119,2]
[378458838,1754873438754,-478.25906086,0.00020119,2]
[378458839,1754873438764,-460.0,0.00020119,2]
[378458840,1754873438774,-460.0,0.00020119,2]
[378458841,1754873438783,-460.0,0.00020119,2]
[378458842,1754873438792,-460.0,0.00020119,2]
[378458843,1754873438802,-460.0,0.00020119,2]
[378458844,1754873438811,-460.0,0.00020119,2]
[378458845,1754873438821,-460.0,0.00020119,2]
[378458846,1754873438830,-460.0,0.00020119,2]
[378458847,1754873438840,-812.86,0.00020119,2]
[378458848,1754873438850,-460.0,0.00020119,2]
[378458849,1754873438859,-460.0,0.00020119,2]
[378458850,1754873438868,-460.0,0.00020119,2]
[378458851,1754873438878,-460.0,0.00020119,2]
[378458852,1754873438887,-460.0,0.00020119,2]
[378458853,1754873438896,-460.0,0.00020119,2]
[378458854,1754873438905,-460.0,0.00020119,2]
[378458855,1754873438915,-460.0,0.00020119,2]
[378458856,1754873438924,-460.0,0.00020119,2]
[378458857,1754873438934,-460.0,0.00020119,2]
[378458858,1754873438943,-460.0,0.00020119,2]
[378458859,1754873438953,-460.0,0.00020119,2]
[378458860,1754873438962,-460.0,0.00020119,2]
[378458861,1754873438971,-460.0,0.00020119,2]
[378458862,1754873438981,-460.0,0.00020119,2]
[378458863,1754873438991,-460.0,0.00020119,2]
[378458864,1754873439002,-531.13,0.00020119,2]
[378458865,1754873439012,-460.0,0.00020119,2]
[378458866,1754873439021,-460.0,0.00020119,2]
[378458867,1754873439032,-460.0,0.00020119,2]
[378458868,1754873439042,-460.0,0.00020119,2]
[378458869,1754873439051,-460.0,0.00020119,2]
[378458870,1754873439061,-460.0,0.00020119,2]
[378458871,1754873439071,-460.0,0.00020119,2]
[378458872,1754873439082,-460.0,0.00020119,2]
[378458873,1754873439092,-460.0,0.00020119,2]
[378458874,1754873439102,-460.0,0.00020119,2]
[378458875,1754873439112,-460.0,0.00020119,2]
[378458876,1754873439122,-460.0,0.00020119,2]
[378458877,1754873439131,-460.0,0.00020119,2]
[378458878,1754873439141,-462.49972025,0.00020119,2]
[378458879,1754873439150,-460.0,0.00020119,2]
[378458880,1754873439160,-460.0,0.00020119,2]
[378458881,1754873439169,-460.0,0.00020119,2]
[378458882,1754873439179,-460.0,0.00020119,2]
[378458883,1754873439189,-460.0,0.00020119,2]
[378458884,1754873439199,-460.0,0.00020119,2]
[378458886,1754873439210,-460.0,0.00020119,2]
[378458887,1754873439219,-575.24,0.0002012,2]
[378458889,1754873439229,-460.0,0.0002012,2]
[378458890,1754873439239,-460.0,0.0002012,2]
[378458891,1754873439248,-460.0,0.0002012,2]
[378458892,1754873439257,-460.0,0.0002012,2]
[378458894,1754873439266,-460.0,0.0002012,2]
[378458895,1754873439276,-460.0,0.0002012,2]
[378458896,1754873439288,-500.0,0.00020121,2]
[378458897,1754873439298,-460.0,0.00020121,2]
[378458898,1754873439307,-460.0,0.00020121,2]
[378458899,1754873439317,-430.0,0.00020121,2]
[378458900,1754873439326,-460.0,0.00020121,2]
[378458901,1754873439335,-460.0,0.00020121,2]
[378458902,1754873439344,-232.76533769,0.00020121,2]
[378458903,1754873439354,-508.86245328,0.00020121,2]
[378458904,1754873439363,-371.43192655,0.00020121,2]
[378458906,1754873439373,-460.0,0.00020121,2]
[378458907,1754873439383,-460.0,0.00020121,2]
[378458908,1754873439392,-460.0,0.00020121,2]
[378458909,1754873439402,-460.0,0.00020121,2]
[378458910,1754873439411,-460.0,0.00020121,2]
[378458911,1754873439420,-460.0,0.00020121,2]
[378458912,1754873439430,-460.0,0.00020121,2]
[378458913,1754873439440,-460.0,0.00020121,2]
[378458914,1754873439449,-460.0,0.00020121,2]
[378458915,1754873439458,-460.0,0.00020121,2]
[378458916,1754873439468,-460.0,0.00020121,2]
[378458917,1754873439477,-460.0,0.00020121,2]
[378458918,1754873439486,-460.0,0.00020121,2]
[378458919,1754873439496,-460.0,0.00020121,2]
[378458920,1754873439505,-460.0,0.00020121,2]
[378458921,1754873439514,-460.0,0.00020121,2]
[378458922,1754873439524,-387.43101359,0.00020121,2]
[378458924,1754873439533,-460.0,0.00020121,2]
[378458925,1754873439542,-199.6505479,0.00020121,2]
[378458926,1754873439553,-468.38356573,0.00020121,2]
[378458927,1754873439563,-460.0,0.00020121,2]
[378458928,1754873439572,-460.0,0.00020121,2]
[378458929,1754873439581,-460.61870703,0.00020121,2]
[378458930,1754873439591,-460.0,0.00020121,2]
[378458931,1754873439600,-460.0,0.00020121,2]
[378458932,1754873439610,-462.27760187,0.00020121,2]
[378458933,1754873439619,-460.0,0.00020121,2]
[378458934,1754873439628,-460.0,0.00020121,2]
[378458935,1754873439638,-460.0,0.00020121,2]
[378458936,1754873439648,-460.0,0.00020121,2]
[378458937,1754873439657,-460.0,0.00020121,2]
[378458938,1754873439666,-460.0,0.00020121,2]
[378458939,1754873439676,-460.0,0.00020121,2]
[378458940,1754873439685,-460.0,0.00020121,2]
[378458941,1754873439695,-460.0,0.00020121,2]
[378458942,1754873439704,-460.0,0.00020121,2]
[378458943,1754873439713,-460.0,0.00020121,2]
[378458944,1754873439723,-460.0,0.00020121,2]
[378458945,1754873439732,-460.0,0.00020121,2]
[378458946,1754873439742,-460.0,0.00020121,2]
[378458947,1754873439751,-460.0,0.00020121,2]
[378458948,1754873439761,-460.0,0.00020121,2]
[378458949,1754873439771,-460.0,0.00020121,2]
[378458950,1754873439781,-460.0,0.00020121,2]
[378458951,1754873439790,-460.0,0.00020121,2]
[378458952,1754873439799,-462.21550561,0.00020121,2]
[378458953,1754873439808,-460.0,0.00020121,2]
[378458954,1754873439817,-464.29913247,0.00020121,2]
[378458955,1754873439827,-460.0,0.00020121,2]
[378458956,1754873439836,-460.0,0.00020121,2]
[378458957,1754873439845,-460.0,0.00020121,2]
[378458959,1754873439854,-460.0,0.00020121,2]
[378458960,1754873439863,-500.0,0.00020121,2]
[378458962,1754873439873,-500.0,0.00020121,2]
[378458964,1754873439882,-356.56440655,0.00020121,2]
[378458966,1754873439891,-460.0,0.00020121,2]
[378458967,1754873439901,-460.0,0.00020121,2]
[378458969,1754873439910,-461.35212272,0.00020121,2]
[378458971,1754873439920,-460.0,0.00020121,2]
[378458973,1754873439929,-460.0,0.00020121,2]
[378458975,1754873439938,-460.0,0.00020121,2]
[378458976,1754873439948,-460.0,0.00020121,2]
[378458978,1754873439957,-462.39875871,0.00020121,2]
[378458980,1754873439966,-460.0,0.00020121,2]
[378458982,1754873439975,-460.0,0.00020121,2]
[378458984,1754873439985,-460.0,0.00020121,2]
[378458985,1754873439994,-460.0,0.00020121,2]
[378458987,1754873440004,-216.35568586,0.00020121,2]
[378458989,1754873440013,-460.0,0.00020121,2]
[378458991,1754873440023,-460.0,0.00020121,2]
[378458993,1754873440032,-460.0,0.00020121,2]
[378458995,1754873440041,-460.0,0.00020121,2]
[378458997,1754873440050,-460.0,0.00020121,2]
[378458999,1754873440060,-385.2664618,0.00020121,2]
[378459001,1754873440069,-460.0,0.00020121,2]
[378459003,1754873440079,-460.0,0.00020121,2]
[378459004,1754873440088,-460.0,0.00020121,2]
[378459006,1754873440097,-500.0,0.00020121,2]
[378459008,1754873440108,-500.0,0.00020121,2]
[378459010,1754873440118,-500.0,0.00020121,2]
[378459012,1754873440127,-500.0,0.00020121,2]
[378459014,1754873440136,-460.0,0.00020121,2]
[378459015,1754873440146,-460.0,0.00020121,2]
[378459017,1754873440155,-1000.0,0.00020121,2]
[378459019,1754873440164,-460.0,0.00020121,2]
[378459021,1754873440174,-460.0,0.00020121,2]
[378459023,1754873440183,-460.0,0.00020121,2]
[378459024,1754873440193,-460.0,0.00020121,2]
[378459026,1754873440202,-460.0,0.00020121,2]
[378459028,1754873440212,-460.0,0.00020121,2]
[378459030,1754873440221,-460.0,0.00020121,2]
[378459032,1754873440230,-460.0,0.00020121,2]
[378459033,1754873440240,-460.0,0.00020121,2]
[378459035,1754873440250,-460.0,0.00020121,2]